[Event "*** SCC Grand Prix: Titled Tuesday Blitz"]
[Site "Chess.com"]
[Date "2020.10.06"]
[Round "5"]
[White "PowerThinking2650"]
[Black "CzechmVIII"]
[Result "1-0"]
[WhiteElo "2381"]
[BlackElo "2146"]
[TimeControl "180+1"]
[EndTime "10:57:31 PDT"]
[Termination "PowerThinking2650 won on time"]

1. e4 {[%clk 0:03:00.9]} 1... c5 {[%clk 0:02:59.1]} 2. Nf3 {[%clk 0:03:00.4]}
2... d6 {[%clk 0:02:59.4]} 3. d4 {[%clk 0:03:01.3]} 3... cxd4 {[%clk 0:03:00]}
4. Nxd4 {[%clk 0:03:02.1]} 4... Nf6 {[%clk 0:03:00.3]} 5. Nc3 {[%clk 0:03:02.8]}
5... g6 {[%clk 0:03:00.8]} 6. Bc4 {[%clk 0:03:02.8]} 6... Bg7 {[%clk 0:02:59.7]}
7. Be3 {[%clk 0:03:03.4]} 7... Nc6 {[%clk 0:02:58.4]} 8. f3 {[%clk 0:03:03.3]}
8... O-O {[%clk 0:02:57.7]} 9. Qd2 {[%clk 0:03:03.5]} 9... Bd7 {[%clk
0:02:57.5]} 10. O-O-O {[%clk 0:02:58]} 10... Rc8 {[%clk 0:02:57]} 11. Bb3 {[%clk
0:02:56.4]} 11... Ne5 {[%clk 0:02:57.1]} 12. h4 {[%clk 0:02:55.7]} 12... h5
{[%clk 0:02:56.6]} 13. Kb1 {[%clk 0:02:55.9]} 13... Nc4 {[%clk 0:02:54.4]} 14.
Bxc4 {[%clk 0:02:55.1]} 14... Rxc4 {[%clk 0:02:55.3]} 15. Nde2 {[%clk
0:02:49.8]} 15... b5 {[%clk 0:02:25.1]} 16. Nf4 {[%clk 0:02:45.6]} 16... b4
{[%clk 0:02:17]} 17. Ncd5 {[%clk 0:02:44.4]} 17... Nxd5 {[%clk 0:02:13]} 18.
Nxd5 {[%clk 0:02:45.3]} 18... Be6 {[%clk 0:01:42.1]} 19. Bh6 {[%clk 0:02:38.3]}
19... Bxd5 {[%clk 0:01:25.5]} 20. Bxg7 {[%clk 0:02:32.3]} 20... Kxg7 {[%clk
0:01:23.7]} 21. exd5 {[%clk 0:02:19.9]} 21... Qc7 {[%clk 0:01:15.8]} 22. g4
{[%clk 0:02:12.2]} 22... Rc8 {[%clk 0:01:06.3]} 23. Rh2 {[%clk 0:02:08.3]} 23...
Rh8 {[%clk 0:00:42.6]} 24. b3 {[%clk 0:02:00.3]} 24... Rc5 {[%clk 0:00:39.7]}
25. Qd4+ {[%clk 0:01:55.5]} 25... Kg8 {[%clk 0:00:37.3]} 26. Qxb4 {[%clk
0:01:51.6]} 26... a5 {[%clk 0:00:37.1]} 27. Qd4 {[%clk 0:01:39.8]} 27... a4
{[%clk 0:00:30.8]} 28. g5 {[%clk 0:01:23.8]} 28... axb3 {[%clk 0:00:24.1]} 29.
axb3 {[%clk 0:01:16.9]} 29... Kh7 {[%clk 0:00:20.5]} 30. Kb2 {[%clk 0:01:06]}
30... Rb8 {[%clk 0:00:20]} 31. f4 {[%clk 0:00:55.7]} 31... Rc4 {[%clk
0:00:18.6]} 32. Qd2 {[%clk 0:00:53.9]} 32... Re4 {[%clk 0:00:14.9]} 33. Rf2
{[%clk 0:00:48.5]} 33... Qc5 {[%clk 0:00:12.9]} 34. f5 {[%clk 0:00:44.6]} 34...
Ra8 {[%clk 0:00:10.7]} 35. fxg6+ {[%clk 0:00:44.6]} 35... fxg6 {[%clk
0:00:07.8]} 36. Ra1 {[%clk 0:00:37.1]} 36... Rxa1 {[%clk 0:00:06.9]} 37. Kxa1
{[%clk 0:00:37.3]} 37... Qa3+ {[%clk 0:00:06.4]} 38. Kb1 {[%clk 0:00:37.5]}
38... Qc5 {[%clk 0:00:03]} 39. Kb2 {[%clk 0:00:30.5]} 39... Rd4 {[%clk
0:00:02.7]} 40. Qc3 {[%clk 0:00:25.9]} 40... Qxc3+ {[%clk 0:00:02.9]} 41. Kxc3
{[%clk 0:00:24.6]} 41... Rxd5 {[%clk 0:00:03.2]} 42. Rf7+ {[%clk 0:00:22.2]}
42... Kg8 {[%clk 0:00:03.5]} 43. Rxe7 {[%clk 0:00:21]} 43... Rf5 {[%clk
0:00:03.8]} 44. Re6 {[%clk 0:00:20.8]} 44... Rf3+ {[%clk 0:00:02.9]} 45. Kb2
{[%clk 0:00:19.4]} 45... Rf4 {[%clk 0:00:03.5]} 46. Rxg6+ {[%clk 0:00:17]} 46...
Kf7 {[%clk 0:00:02.6]} 47. Rxd6 {[%clk 0:00:17.9]} 47... Rxh4 {[%clk 0:00:02.9]}
48. g6+ {[%clk 0:00:16.8]} 48... Kg7 {[%clk 0:00:02.6]} 49. Rd3 {[%clk
0:00:17.4]} 49... Rg4 {[%clk 0:00:02]} 50. b4 {[%clk 0:00:15.7]} 50... Rxg6
{[%clk 0:00:01.8]} 51. Kb3 {[%clk 0:00:16.1]} 51... h4 {[%clk 0:00:01.3]} 52.
Rh3 {[%clk 0:00:16.8]} 1-0

[Event "*** SCC Grand Prix: Titled Tuesday Blitz"]
[Site "Chess.com"]
[Date "2020.10.06"]
[Round "5"]
[White "JoliyRoger"]
[Black "esrosenberg"]
[Result "1-0"]
[WhiteElo "2464"]
[BlackElo "2299"]
[TimeControl "180+1"]
[EndTime "10:57:32 PDT"]
[Termination "JoliyRoger won on time"]

1. Nf3 {[%clk 0:03:00.9]} 1... Nf6 {[%clk 0:02:59.7]} 2. c4 {[%clk 0:03:01.3]}
2... b6 {[%clk 0:02:57.4]} 3. d4 {[%clk 0:03:01.3]} 3... e6 {[%clk 0:02:56.4]}
4. a3 {[%clk 0:03:01.2]} 4... Bb7 {[%clk 0:02:54.5]} 5. Nc3 {[%clk 0:03:01.5]}
5... c5 {[%clk 0:02:43.9]} 6. d5 {[%clk 0:03:00.9]} 6... exd5 {[%clk 0:02:43.3]}
7. cxd5 {[%clk 0:03:01.8]} 7... d6 {[%clk 0:02:43.5]} 8. e4 {[%clk 0:03:02.4]}
8... Be7 {[%clk 0:02:43.5]} 9. Bd3 {[%clk 0:03:00.4]} 9... O-O {[%clk
0:02:43.7]} 10. O-O {[%clk 0:02:57.7]} 10... Nbd7 {[%clk 0:02:44.2]} 11. h3
{[%clk 0:02:57.6]} 11... Re8 {[%clk 0:02:43.5]} 12. Bf4 {[%clk 0:02:57.8]} 12...
a6 {[%clk 0:02:42.6]} 13. a4 {[%clk 0:02:57.4]} 13... Nf8 {[%clk 0:02:36.9]} 14.
Re1 {[%clk 0:02:56.4]} 14... Ng6 {[%clk 0:02:36.7]} 15. Bh2 {[%clk 0:02:56.9]}
15... Bf8 {[%clk 0:02:27.2]} 16. Qc2 {[%clk 0:02:54.7]} 16... Nh5 {[%clk
0:02:10.8]} 17. Rad1 {[%clk 0:02:45.2]} 17... Ra7 {[%clk 0:01:51.1]} 18. Bc4
{[%clk 0:02:37.1]} 18... Nhf4 {[%clk 0:01:45]} 19. Qd2 {[%clk 0:01:55.5]} 19...
Qf6 {[%clk 0:01:43.8]} 20. Re3 {[%clk 0:01:47.5]} 20... Bc8 {[%clk 0:01:36.6]}
21. Rde1 {[%clk 0:01:41.3]} 21... Bd7 {[%clk 0:00:54.5]} 22. Bg3 {[%clk
0:01:27.5]} 22... b5 {[%clk 0:00:32.8]} 23. axb5 {[%clk 0:01:22.1]} 23... axb5
{[%clk 0:00:33.7]} 24. Bxb5 {[%clk 0:01:02]} 24... Ne5 {[%clk 0:00:32.8]} 25.
Nxe5 {[%clk 0:01:01.3]} 25... Rxe5 {[%clk 0:00:26.6]} 26. Bxd7 {[%clk
0:01:00.7]} 26... Rxd7 {[%clk 0:00:27.2]} 27. Rf3 {[%clk 0:01:00.2]} 27... Nxh3+
{[%clk 0:00:25]} 28. Kf1 {[%clk 0:00:53.1]} 28... Qg6 {[%clk 0:00:08.9]} 29.
Bxe5 {[%clk 0:00:38.8]} 29... Ng5 {[%clk 0:00:08.6]} 30. Rg3 {[%clk 0:00:38.9]}
30... f6 {[%clk 0:00:08.2]} 31. Bf4 {[%clk 0:00:38.2]} 31... Qh5 {[%clk
0:00:06.4]} 32. Bxg5 {[%clk 0:00:35.4]} 32... fxg5 {[%clk 0:00:06.2]} 33. Rh3
{[%clk 0:00:35.4]} 33... Qf7 {[%clk 0:00:05]} 34. Qxg5 {[%clk 0:00:34.2]} 34...
h6 {[%clk 0:00:05.5]} 35. Qf5 {[%clk 0:00:33.9]} 35... Qe8 {[%clk 0:00:05]} 36.
Qe6+ {[%clk 0:00:34.1]} 36... Qxe6 {[%clk 0:00:04.6]} 37. dxe6 {[%clk 0:00:35]}
37... Rb7 {[%clk 0:00:04.9]} 38. f4 {[%clk 0:00:33.4]} 38... Be7 {[%clk
0:00:04.8]} 39. f5 {[%clk 0:00:33.8]} 39... Rxb2 {[%clk 0:00:04.8]} 40. Nd5
{[%clk 0:00:33.2]} 40... Bg5 {[%clk 0:00:04.2]} 41. Rf3 {[%clk 0:00:29.2]} 41...
Kf8 {[%clk 0:00:04.3]} 42. Re2 {[%clk 0:00:28.2]} 42... Rb1+ {[%clk 0:00:04.2]}
43. Kf2 {[%clk 0:00:28.6]} 43... Rd1 {[%clk 0:00:04]} 44. g3 {[%clk 0:00:28.7]}
44... c4 {[%clk 0:00:03.7]} 45. Rc3 {[%clk 0:00:25.9]} 45... Rd4 {[%clk
0:00:03.4]} 46. Kf3 {[%clk 0:00:24.3]} 46... h5 {[%clk 0:00:03]} 47. Nf4 {[%clk
0:00:24.3]} 47... Ke7 {[%clk 0:00:01.8]} 48. Rec2 {[%clk 0:00:22.3]} 48... d5
{[%clk 0:00:01.6]} 49. Nxd5+ {[%clk 0:00:22]} 49... Kd6 {[%clk 0:00:01.6]} 50.
Nf4 {[%clk 0:00:22.5]} 50... Ke5 {[%clk 0:00:01.6]} 51. Rxc4 {[%clk 0:00:22.5]}
51... Rd1 {[%clk 0:00:01.2]} 52. Rc5+ {[%clk 0:00:22.4]} 52... Kf6 {[%clk
0:00:01.3]} 53. Nxh5+ {[%clk 0:00:22.6]} 1-0

[Event "*** SCC Grand Prix: Titled Tuesday Blitz"]
[Site "Chess.com"]
[Date "2020.10.06"]
[Round "5"]
[White "Fischerev7"]
[Black "AungTZ"]
[Result "1-0"]
[WhiteElo "2346"]
[BlackElo "2147"]
[TimeControl "180+1"]
[EndTime "10:57:33 PDT"]
[Termination "Fischerev7 won by resignation"]

1. e4 {[%clk 0:02:59.7]} 1... c5 {[%clk 0:02:59.1]} 2. Nf3 {[%clk 0:02:59.2]}
2... Nc6 {[%clk 0:02:58.9]} 3. d4 {[%clk 0:02:59.6]} 3... cxd4 {[%clk
0:02:58.6]} 4. Nxd4 {[%clk 0:03:00.5]} 4... Nf6 {[%clk 0:02:58.8]} 5. Nc3 {[%clk
0:03:00.6]} 5... d6 {[%clk 0:02:58.9]} 6. Bg5 {[%clk 0:02:59.7]} 6... e6 {[%clk
0:02:58.4]} 7. Qd2 {[%clk 0:02:59.5]} 7... a6 {[%clk 0:02:57.2]} 8. O-O-O {[%clk
0:02:59.5]} 8... h6 {[%clk 0:02:57.3]} 9. Be3 {[%clk 0:02:56.7]} 9... Bd7 {[%clk
0:02:55.2]} 10. Kb1 {[%clk 0:02:55.3]} 10... Ng4 {[%clk 0:02:50.1]} 11. Bc4
{[%clk 0:02:31.1]} 11... Nxe3 {[%clk 0:02:46.3]} 12. Qxe3 {[%clk 0:02:30.5]}
12... Be7 {[%clk 0:02:39.8]} 13. f4 {[%clk 0:02:28.2]} 13... Qc7 {[%clk
0:02:35.5]} 14. Bb3 {[%clk 0:02:26.4]} 14... Nxd4 {[%clk 0:02:11.3]} 15. Qxd4
{[%clk 0:02:22.2]} 15... Bc6 {[%clk 0:02:10.4]} 16. Qxg7 {[%clk 0:02:15.7]}
16... Rf8 {[%clk 0:01:52.3]} 17. Qxh6 {[%clk 0:02:08.8]} 17... O-O-O {[%clk
0:01:51.5]} 18. f5 {[%clk 0:01:54.5]} 18... exf5 {[%clk 0:01:39.3]} 19. exf5
{[%clk 0:01:49.4]} 19... Rh8 {[%clk 0:01:23.9]} 20. Qg7 {[%clk 0:01:47.5]} 20...
Rdf8 {[%clk 0:01:19.7]} 21. Bxf7 {[%clk 0:01:13.7]} 21... Bd8 {[%clk 0:01:15]}
22. Be6+ {[%clk 0:01:11.9]} 22... Kb8 {[%clk 0:01:14.4]} 23. Qd4 {[%clk
0:01:07.3]} 23... Be7 {[%clk 0:01:02.1]} 24. Nd5 {[%clk 0:01:03.6]} 24... Bxd5
{[%clk 0:01:01.5]} 25. Qxd5 {[%clk 0:01:04.5]} 25... Rd8 {[%clk 0:00:53.6]} 26.
g4 {[%clk 0:01:01.7]} 26... Rh4 {[%clk 0:00:50.8]} 27. h3 {[%clk 0:00:59.3]}
27... Bf6 {[%clk 0:00:50.5]} 28. Rd3 {[%clk 0:00:57.5]} 28... Be5 {[%clk
0:00:43.7]} 29. Rf1 {[%clk 0:00:51]} 29... Rf8 {[%clk 0:00:38.3]} 30. Rb3 {[%clk
0:00:46.2]} 30... Ka7 {[%clk 0:00:35.2]} 31. a4 {[%clk 0:00:44.8]} 31... Rf6
{[%clk 0:00:29.9]} 32. Rff3 {[%clk 0:00:33.4]} 32... Rfh6 {[%clk 0:00:21.8]} 33.
Rfd3 {[%clk 0:00:29.1]} 33... Rh7 {[%clk 0:00:20]} 34. a5 {[%clk 0:00:26.7]}
34... R4h6 {[%clk 0:00:16.8]} 35. Rb6 {[%clk 0:00:24.6]} 35... Rh4 {[%clk
0:00:15.2]} 36. Rdb3 {[%clk 0:00:23.2]} 36... Rxh3 {[%clk 0:00:15.2]} 37. Rxb7+
{[%clk 0:00:20.7]} 37... Qxb7 {[%clk 0:00:15.4]} 38. Rxb7+ {[%clk 0:00:20.8]}
38... Rxb7 {[%clk 0:00:15.5]} 39. b3 {[%clk 0:00:13]} 39... Re3 {[%clk
0:00:15.2]} 40. Qd2 {[%clk 0:00:11.9]} 40... Rg3 {[%clk 0:00:12.5]} 41. Qf2+
{[%clk 0:00:09.9]} 41... Kb8 {[%clk 0:00:11.4]} 42. Bd5 {[%clk 0:00:10]} 42...
Rxg4 {[%clk 0:00:09]} 43. Bxb7 {[%clk 0:00:09.3]} 43... Kxb7 {[%clk 0:00:08.2]}
44. Qf3+ {[%clk 0:00:09.8]} 44... Kc7 {[%clk 0:00:08]} 45. Qxg4 {[%clk
0:00:10.3]} 45... Kc6 {[%clk 0:00:07.8]} 1-0

[Event "*** SCC Grand Prix: Titled Tuesday Blitz"]
[Site "Chess.com"]
[Date "2020.10.06"]
[Round "5"]
[White "SharapovEvgeny"]
[Black "sopo-tereladze"]
[Result "1-0"]
[WhiteElo "2469"]
[BlackElo "2304"]
[TimeControl "180+1"]
[EndTime "10:57:34 PDT"]
[Termination "SharapovEvgeny won by resignation"]

1. c4 {[%clk 0:02:59.7]} 1... Nf6 {[%clk 0:02:58.8]} 2. Nc3 {[%clk 0:02:59.1]}
2... e6 {[%clk 0:02:58.3]} 3. Nf3 {[%clk 0:02:57.6]} 3... d5 {[%clk 0:02:57.3]}
4. cxd5 {[%clk 0:02:57.3]} 4... exd5 {[%clk 0:02:56.9]} 5. d4 {[%clk 0:02:57.3]}
5... c6 {[%clk 0:02:57]} 6. Bg5 {[%clk 0:02:56.2]} 6... Bf5 {[%clk 0:02:56.9]}
7. Qb3 {[%clk 0:02:55.2]} 7... b6 {[%clk 0:02:50.6]} 8. e3 {[%clk 0:02:51.9]}
8... Bd6 {[%clk 0:02:49.7]} 9. Be2 {[%clk 0:02:49.8]} 9... h6 {[%clk 0:02:49.2]}
10. Bh4 {[%clk 0:02:49.3]} 10... O-O {[%clk 0:02:47.9]} 11. O-O {[%clk
0:02:48.4]} 11... Nbd7 {[%clk 0:02:48.1]} 12. Rac1 {[%clk 0:02:46.9]} 12... Rc8
{[%clk 0:02:45]} 13. Bg3 {[%clk 0:02:41.9]} 13... Qe7 {[%clk 0:02:43.8]} 14.
Bxd6 {[%clk 0:02:40.8]} 14... Qxd6 {[%clk 0:02:44.7]} 15. Rfd1 {[%clk 0:02:40]}
15... Ne4 {[%clk 0:02:43.5]} 16. Nxe4 {[%clk 0:02:39.1]} 16... Bxe4 {[%clk
0:02:44.4]} 17. Rc3 {[%clk 0:02:32.7]} 17... Rc7 {[%clk 0:02:40.3]} 18. Qa4
{[%clk 0:02:26.6]} 18... Bxf3 {[%clk 0:02:37.5]} 19. Bxf3 {[%clk 0:02:25.5]}
19... Rfc8 {[%clk 0:02:33.3]} 20. b4 {[%clk 0:02:22.6]} 20... b5 {[%clk
0:02:25.5]} 21. Qb3 {[%clk 0:02:18.9]} 21... Nb6 {[%clk 0:02:26.4]} 22. e4
{[%clk 0:02:18.8]} 22... Nc4 {[%clk 0:02:24.4]} 23. e5 {[%clk 0:02:11.8]} 23...
Qg6 {[%clk 0:02:14.8]} 24. Qc2 {[%clk 0:02:07.2]} 24... Qxc2 {[%clk 0:01:59.4]}
25. Rxc2 {[%clk 0:02:06.5]} 25... f6 {[%clk 0:01:59.4]} 26. exf6 {[%clk
0:01:59.2]} 26... gxf6 {[%clk 0:01:57.8]} 27. Re1 {[%clk 0:01:58.2]} 27... Kf7
{[%clk 0:01:55.2]} 28. Rce2 {[%clk 0:01:57.1]} 28... a5 {[%clk 0:01:47.3]} 29.
bxa5 {[%clk 0:01:51.3]} 29... Nxa5 {[%clk 0:01:46.5]} 30. Bh5+ {[%clk
0:01:48.7]} 30... Kf8 {[%clk 0:01:38.6]} 31. Re6 {[%clk 0:01:45.3]} 31... Kg7
{[%clk 0:01:35.8]} 32. Re7+ {[%clk 0:01:42.5]} 32... Rxe7 {[%clk 0:01:33.8]} 33.
Rxe7+ {[%clk 0:01:41.7]} 33... Kg8 {[%clk 0:01:34.7]} 34. h4 {[%clk 0:01:31.8]}
34... Nc4 {[%clk 0:01:32.2]} 35. Re6 {[%clk 0:01:17.1]} 35... Kg7 {[%clk
0:01:29.2]} 36. Kh2 {[%clk 0:01:16]} 36... b4 {[%clk 0:01:27.9]} 37. Kg3 {[%clk
0:01:10.3]} 37... Na3 {[%clk 0:01:13.1]} 38. Re7+ {[%clk 0:00:58.7]} 38... Kg8
{[%clk 0:01:12.1]} 39. Rf7 {[%clk 0:00:56.2]} 39... Nc2 {[%clk 0:01:09.6]} 40.
Rxf6 {[%clk 0:00:55]} 40... Nxd4 {[%clk 0:01:09.2]} 41. Bg4 {[%clk 0:00:47.6]}
41... Rc7 {[%clk 0:01:04.7]} 42. Rxh6 {[%clk 0:00:42.7]} 42... b3 {[%clk
0:00:54.4]} 43. axb3 {[%clk 0:00:41.2]} 43... Nxb3 {[%clk 0:00:55.3]} 44. Rd6
{[%clk 0:00:33]} 44... Nd2 {[%clk 0:00:54.1]} 45. Bf5 {[%clk 0:00:29.5]} 45...
Kf7 {[%clk 0:00:50.2]} 46. Rd7+ {[%clk 0:00:27.6]} 46... Rxd7 {[%clk 0:00:49.5]}
47. Bxd7 {[%clk 0:00:27.7]} 47... c5 {[%clk 0:00:50.4]} 48. Kf4 {[%clk
0:00:27.1]} 48... d4 {[%clk 0:00:46.8]} 49. Ke5 {[%clk 0:00:22.3]} 49... Nc4+
{[%clk 0:00:34.4]} 50. Ke4 {[%clk 0:00:19.6]} 50... d3 {[%clk 0:00:26.4]} 51.
Bb5 {[%clk 0:00:14.3]} 51... d2 {[%clk 0:00:24.1]} 52. Bxc4+ {[%clk 0:00:13.6]}
52... Kg6 {[%clk 0:00:21.9]} 53. Be2 {[%clk 0:00:13.2]} 53... c4 {[%clk
0:00:20.5]} 54. Kd4 {[%clk 0:00:13.1]} 1-0

[Event "*** SCC Grand Prix: Titled Tuesday Blitz"]
[Site "Chess.com"]
[Date "2020.10.06"]
[Round "5"]
[White "AlexOstrovskiy"]
[Black "KuzubovYuriy"]
[Result "0-1"]
[WhiteElo "2755"]
[BlackElo "2936"]
[TimeControl "180+1"]
[EndTime "10:57:36 PDT"]
[Termination "KuzubovYuriy won by resignation"]

1. d4 {[%clk 0:03:00.9]} 1... Nf6 {[%clk 0:02:59.8]} 2. Bf4 {[%clk 0:02:59.1]}
2... d6 {[%clk 0:02:58.3]} 3. Nc3 {[%clk 0:02:57.6]} 3... Nc6 {[%clk 0:02:54]}
4. Nf3 {[%clk 0:02:50.8]} 4... Bf5 {[%clk 0:02:48.8]} 5. d5 {[%clk 0:02:44.8]}
5... Nb8 {[%clk 0:02:35.2]} 6. Nd4 {[%clk 0:02:37.6]} 6... Bd7 {[%clk
0:02:15.8]} 7. e4 {[%clk 0:02:37.5]} 7... c5 {[%clk 0:02:14.8]} 8. dxc6 {[%clk
0:02:18.3]} 8... Nxc6 {[%clk 0:02:13.2]} 9. Nxc6 {[%clk 0:02:18.4]} 9... Bxc6
{[%clk 0:02:10.8]} 10. Qd3 {[%clk 0:02:04.6]} 10... g6 {[%clk 0:02:02.2]} 11.
O-O-O {[%clk 0:02:03.4]} 11... Bg7 {[%clk 0:02:01.9]} 12. e5 {[%clk 0:01:54.5]}
12... Nh5 {[%clk 0:01:47.8]} 13. Bg3 {[%clk 0:00:55.8]} 13... Nxg3 {[%clk
0:01:41.5]} 14. hxg3 {[%clk 0:00:56.7]} 14... Bxe5 {[%clk 0:01:41.3]} 15. f4
{[%clk 0:00:53.9]} 15... Bg7 {[%clk 0:01:38.3]} 16. g4 {[%clk 0:00:46]} 16...
Qa5 {[%clk 0:01:35]} 17. Rh3 {[%clk 0:00:31.4]} 17... Rc8 {[%clk 0:01:25.1]} 18.
Kb1 {[%clk 0:00:26.1]} 18... Bxc3 {[%clk 0:01:15.9]} 19. Qxc3 {[%clk 0:00:25.3]}
19... Qxc3 {[%clk 0:01:15.7]} 20. Rxc3 {[%clk 0:00:26.2]} 20... Bd7 {[%clk
0:01:09.1]} 21. Re3 {[%clk 0:00:18.8]} 21... Bxg4 {[%clk 0:01:02.2]} 22. Rxd6
{[%clk 0:00:19.3]} 22... Kf8 {[%clk 0:01:01.7]} 23. Rd4 {[%clk 0:00:12.2]} 23...
h5 {[%clk 0:00:57.9]} 24. b3 {[%clk 0:00:11.9]} 24... h4 {[%clk 0:00:51.9]} 25.
Kb2 {[%clk 0:00:10.6]} 25... Rh5 {[%clk 0:00:50.3]} 26. c4 {[%clk 0:00:08.3]}
26... Rhc5 {[%clk 0:00:48.5]} 27. Be2 {[%clk 0:00:06.6]} 27... Bxe2 {[%clk
0:00:47.8]} 28. Rxe2 {[%clk 0:00:07.5]} 28... e6 {[%clk 0:00:46.9]} 29. Re3
{[%clk 0:00:07.8]} 29... Ke7 {[%clk 0:00:46.4]} 30. Rh3 {[%clk 0:00:07.9]} 30...
Rh5 {[%clk 0:00:46.5]} 31. Rhd3 {[%clk 0:00:08.4]} 31... Rc7 {[%clk 0:00:46]}
32. Kc3 {[%clk 0:00:08.5]} 32... b6 {[%clk 0:00:43.2]} 33. a4 {[%clk 0:00:08.6]}
33... g5 {[%clk 0:00:42.6]} 34. fxg5 {[%clk 0:00:08.4]} 34... Rxg5 {[%clk
0:00:43.5]} 35. Rxh4 {[%clk 0:00:08.5]} 35... Rxg2 {[%clk 0:00:43.2]} 36. Rh7
{[%clk 0:00:09.2]} 36... Rf2 {[%clk 0:00:42.8]} 37. Rg3 {[%clk 0:00:09.3]} 37...
Rd7 {[%clk 0:00:42]} 38. Rd3 {[%clk 0:00:06.9]} 38... Rxd3+ {[%clk 0:00:41.5]}
39. Kxd3 {[%clk 0:00:07.8]} 39... Rf3+ {[%clk 0:00:42]} 40. Kc2 {[%clk
0:00:08.4]} 40... a5 {[%clk 0:00:42]} 41. Rh8 {[%clk 0:00:08.8]} 41... Kd6
{[%clk 0:00:41.8]} 42. Rb8 {[%clk 0:00:08.7]} 42... Kc7 {[%clk 0:00:41.9]} 43.
Re8 {[%clk 0:00:07.9]} 43... Rf5 {[%clk 0:00:41.8]} 44. Re7+ {[%clk 0:00:07.9]}
44... Kc6 {[%clk 0:00:41.9]} 45. Re8 {[%clk 0:00:08.5]} 45... e5 {[%clk
0:00:42.1]} 46. Re7 {[%clk 0:00:08.8]} 46... f6 {[%clk 0:00:42.1]} 47. Kc3
{[%clk 0:00:07.5]} 47... Rf3+ {[%clk 0:00:41.8]} 48. Kc2 {[%clk 0:00:07.9]}
48... Rf4 {[%clk 0:00:42.1]} 49. Re6+ {[%clk 0:00:07.4]} 49... Kc5 {[%clk
0:00:41.8]} 50. Kc3 {[%clk 0:00:08]} 50... e4 {[%clk 0:00:41.5]} 51. Kc2 {[%clk
0:00:07]} 51... f5 {[%clk 0:00:40.1]} 52. Kd2 {[%clk 0:00:06.6]} 52... Rf3
{[%clk 0:00:39.9]} 53. Kc2 {[%clk 0:00:04.5]} 53... e3 {[%clk 0:00:39.6]} 54.
Re5+ {[%clk 0:00:03.6]} 54... Kc6 {[%clk 0:00:38.1]} 55. Re6+ {[%clk 0:00:03.8]}
55... Kc7 {[%clk 0:00:38]} 56. Re5 {[%clk 0:00:04.2]} 56... f4 {[%clk
0:00:37.8]} 57. Kd3 {[%clk 0:00:05.1]} 57... Rf2 {[%clk 0:00:37.9]} 58. Rf5
{[%clk 0:00:04.4]} 58... e2 {[%clk 0:00:37]} 59. Kd2 {[%clk 0:00:04.4]} 59... f3
{[%clk 0:00:36.8]} 60. Re5 {[%clk 0:00:04]} 60... Rf1 {[%clk 0:00:36.6]} 0-1

[Event "*** SCC Grand Prix: Titled Tuesday Blitz"]
[Site "Chess.com"]
[Date "2020.10.06"]
[Round "5"]
[White "gumimis"]
[Black "Brave_spirit12"]
[Result "0-1"]
[WhiteElo "2259"]
[BlackElo "2486"]
[TimeControl "180+1"]
[EndTime "10:57:37 PDT"]
[Termination "Brave_spirit12 won by checkmate"]

1. e4 {[%clk 0:02:59.8]} 1... e6 {[%clk 0:03:00.9]} 2. d4 {[%clk 0:02:53.8]}
2... d5 {[%clk 0:03:01]} 3. Nc3 {[%clk 0:02:54.2]} 3... Nf6 {[%clk 0:03:00.2]}
4. e5 {[%clk 0:02:54.2]} 4... Nfd7 {[%clk 0:03:00.3]} 5. f4 {[%clk 0:02:54.8]}
5... c5 {[%clk 0:03:00.6]} 6. Nf3 {[%clk 0:02:54.4]} 6... Nc6 {[%clk 0:03:01.5]}
7. Be3 {[%clk 0:02:54.7]} 7... Qb6 {[%clk 0:03:01.7]} 8. Na4 {[%clk 0:02:45.6]}
8... Qa5+ {[%clk 0:03:01.1]} 9. c3 {[%clk 0:02:45.8]} 9... cxd4 {[%clk
0:03:01.1]} 10. b4 {[%clk 0:02:45.1]} 10... Nxb4 {[%clk 0:03:01.3]} 11. cxb4
{[%clk 0:02:45.3]} 11... Bxb4+ {[%clk 0:03:02.2]} 12. Bd2 {[%clk 0:02:45.3]}
12... Bxd2+ {[%clk 0:03:01.9]} 13. Nxd2 {[%clk 0:02:45.8]} 13... b6 {[%clk
0:03:01.7]} 14. Nb2 {[%clk 0:02:41.3]} 14... Nc5 {[%clk 0:02:59.6]} 15. Kf2
{[%clk 0:02:00.1]} 15... Qc3 {[%clk 0:02:40.1]} 16. Bb5+ {[%clk 0:01:47.5]}
16... Ke7 {[%clk 0:02:34.1]} 17. Rb1 {[%clk 0:01:21.4]} 17... Qe3+ {[%clk
0:01:45.6]} 18. Kf1 {[%clk 0:01:21.6]} 18... Qxf4+ {[%clk 0:01:40.7]} 19. Nf3
{[%clk 0:01:21.2]} 19... a6 {[%clk 0:01:21.7]} 20. Be2 {[%clk 0:01:15.4]} 20...
Bd7 {[%clk 0:01:04.5]} 21. Qxd4 {[%clk 0:01:14]} 21... Qxd4 {[%clk 0:01:03.5]}
22. Nxd4 {[%clk 0:01:14.1]} 22... Rhc8 {[%clk 0:01:04.4]} 23. Nd3 {[%clk
0:01:10.6]} 23... Ne4 {[%clk 0:00:34.4]} 24. Rxb6 {[%clk 0:01:09.7]} 24... Rc3
{[%clk 0:00:31.2]} 25. g3 {[%clk 0:00:59.2]} 25... Rac8 {[%clk 0:00:28.7]} 26.
Kg2 {[%clk 0:00:57.7]} 26... R8c4 {[%clk 0:00:24.2]} 27. Nf3 {[%clk 0:00:27.3]}
27... Rc2 {[%clk 0:00:23.2]} 28. Re1 {[%clk 0:00:26.1]} 28... Bb5 {[%clk
0:00:20.1]} 29. Kf1 {[%clk 0:00:19.1]} 29... Rc7 {[%clk 0:00:15.2]} 30. a4
{[%clk 0:00:17.2]} 30... Bxd3 {[%clk 0:00:11]} 31. Bxd3 {[%clk 0:00:17.1]} 31...
Rf2+ {[%clk 0:00:11.7]} 32. Kg1 {[%clk 0:00:17.5]} 32... Rxf3 {[%clk 0:00:12.3]}
33. Bxe4 {[%clk 0:00:17.4]} 33... dxe4 {[%clk 0:00:12.6]} 34. Rxe4 {[%clk
0:00:17.8]} 34... Ra3 {[%clk 0:00:10.4]} 35. Rxa6 {[%clk 0:00:18]} 35... Ra2
{[%clk 0:00:10.9]} 36. Re1 {[%clk 0:00:17.4]} 36... Rcc2 {[%clk 0:00:10.8]} 37.
Ra7+ {[%clk 0:00:17.7]} 37... Ke8 {[%clk 0:00:09.8]} 38. Rb1 {[%clk 0:00:17.7]}
38... Rc8 {[%clk 0:00:02.5]} 39. a5 {[%clk 0:00:16.3]} 39... Kf8 {[%clk
0:00:02.3]} 40. a6 {[%clk 0:00:16.6]} 40... g6 {[%clk 0:00:02.9]} 41. Kf1 {[%clk
0:00:14.6]} 41... Kg7 {[%clk 0:00:03.3]} 42. Kg1 {[%clk 0:00:14.1]} 42... Rcc2
{[%clk 0:00:03.5]} 43. Rf1 {[%clk 0:00:14]} 43... Rg2+ {[%clk 0:00:03.8]} 44.
Kh1 {[%clk 0:00:14.7]} 44... Rxh2+ {[%clk 0:00:04.7]} 45. Kg1 {[%clk 0:00:15]}
45... Rag2# {[%clk 0:00:05.6]} 0-1